[Event "December 5 Early 2023"]
[Site "https://www.chess.com"]
[Date "2023.12.05"]
[Round "3"]
[White "Romero Arzuaga, Yudel"]
[Black "Sailer, Mike"]
[Result "1-0"]
[Board "189"]
[TimeControl "180+1"]
[WhiteFideId "3521010"]
[BlackFideId "2012901"]
[WhiteElo "2426"]
[BlackElo "2050"]
[WhiteTeam "CUB"]
[BlackTeam "USA"]
[WhiteClock "0:00:32"]
[BlackClock "0:00:00"]

1. d4 {[%clk 0:03:00]}  d5 {[%clk 0:02:58]} 2. c4 {[%clk 0:03:00]}  Bf5 {[%clk 0:02:58]} 3. Nc3 {[%clk 0:03:00]}  e6 {[%clk 0:02:58]} 4. Qb3 {[%clk 0:02:57]}  Nc6 {[%clk 0:02:57]} 5. a3 {[%clk 0:02:28]}  Nxd4 {[%clk 0:02:33]} 6. Qxb7 {[%clk 0:02:28]}  Rb8 {[%clk 0:02:14]} 7. Qxa7 {[%clk 0:02:22]}  Nc2+ {[%clk 0:02:11]} 8. Kd1 {[%clk 0:02:20]}  dxc4+ {[%clk 0:02:03]} 9. Bd2 {[%clk 0:02:20]}  Nxa1 {[%clk 0:01:59]} 10. e4 {[%clk 0:02:21]}  Rxb2 {[%clk 0:01:49]} 11. Nf3 {[%clk 0:02:14]}  Nb3 {[%clk 0:01:30]} 12. Qa4+ {[%clk 0:01:59]}  Ke7 {[%clk 0:01:23]} 13. Qb4+ {[%clk 0:01:51]}  Kf6 {[%clk 0:01:17]} 14. Nd5+ {[%clk 0:01:26]}  Qxd5 {[%clk 0:01:05]} 15. Qc3+ {[%clk 0:01:24]}  Qd4 {[%clk 0:00:44]} 16. Nxd4 {[%clk 0:01:19]}  Rxd2+ {[%clk 0:00:44]} 17. Ke1 {[%clk 0:01:14]}  Rxd4 {[%clk 0:00:38]} 18. exf5 {[%clk 0:01:08]}  Bxa3 {[%clk 0:00:29]} 19. Bxc4 {[%clk 0:01:08]}  Ne7 {[%clk 0:00:13]} 20. Bxb3 {[%clk 0:01:02]}  Nxf5 {[%clk 0:00:13]} 21. Ke2 {[%clk 0:00:56]}  Bb4 {[%clk 0:00:11]} 22. Qb2 {[%clk 0:00:56]}  Rd8 {[%clk 0:00:05]} 23. Rd1 {[%clk 0:00:53]}  Ke7 {[%clk 0:00:04]} 24. Rxd4 {[%clk 0:00:50]}  Rxd4 {[%clk 0:00:04]} 25. Bc2 {[%clk 0:00:48]}  c5 {[%clk 0:00:04]} 26. Qb3 {[%clk 0:00:47]}  Kf6 {[%clk 0:00:04]} 27. h3 {[%clk 0:00:46]}  h5 {[%clk 0:00:03]} 28. g4 {[%clk 0:00:44]}  hxg4 {[%clk 0:00:04]} 29. hxg4 {[%clk 0:00:44]}  Nd6 {[%clk 0:00:04]} 30. Qf3+ {[%clk 0:00:42]}  Ke7 {[%clk 0:00:04]} 31. g5 {[%clk 0:00:39]}  g6 {[%clk 0:00:05]} 32. Qf6+ {[%clk 0:00:38]}  Kf8 {[%clk 0:00:05]} 33. Bxg6 {[%clk 0:00:35]}  Rd2+ {[%clk 0:00:05]} 34. Kf1 {[%clk 0:00:35]}  Rd1+ {[%clk 0:00:04]} 35. Kg2 {[%clk 0:00:35]}  Rd4 {[%clk 0:00:03]} 36. Bxf7 {[%clk 0:00:33]}  Nxf7 {[%clk 0:00:03]} 37. g6 {[%clk 0:00:33]}  Rg4+ {[%clk 0:00:02]} 38. Kf1 {[%clk 0:00:33]}  Rxg6 {[%clk 0:00:02]} 39. Qxg6 {[%clk 0:00:34]}  Ke7 {[%clk 0:00:02]} 40. Qh7 {[%clk 0:00:33]}  c4 {[%clk 0:00:02]} 41. Ke2 {[%clk 0:00:33]}  c3 {[%clk 0:00:02]} 42. Kd1 {[%clk 0:00:33]}  Bd6 {[%clk 0:00:02]} 43. Kc2 {[%clk 0:00:34]}  Be5 {[%clk 0:00:03]} 44. Qh4+ {[%clk 0:00:33]}  Bf6 {[%clk 0:00:03]} 45. Qb4+ {[%clk 0:00:33]}  Ke8 {[%clk 0:00:03]} 46. Qb7 {[%clk 0:00:33]}  Kf8 {[%clk 0:00:03]} 47. Qc8+ {[%clk 0:00:33]}  Ke7 {[%clk 0:00:03]} 48. f4 {[%clk 0:00:32]}  Nd6 {[%clk 0:00:00]} 49. Qc7+ {[%clk 0:00:32]} 1-0

[Event "December 5 Early 2023"]
[Site "https://www.chess.com"]
[Date "2023.12.05"]
[Round "3"]
[White "Hernandez Jimenez, Alexander Andres"]
[Black "Nihal Sarin"]
[Result "0-1"]
[Board "190"]
[TimeControl "180+1"]
[WhiteFideId "3900452"]
[BlackFideId "25092340"]
[WhiteElo "2315"]
[BlackElo "3105"]
[WhiteTeam "VEN"]
[BlackTeam "IND"]
[WhiteClock "0:00:33"]
[BlackClock "0:02:29"]

1. e4 {[%clk 0:02:53]}  e5 {[%clk 0:03:00]} 2. Nf3 {[%clk 0:02:53]}  Nc6 {[%clk 0:03:00]} 3. Bc4 {[%clk 0:02:53]}  Bc5 {[%clk 0:03:00]} 4. d3 {[%clk 0:02:53]}  Nf6 {[%clk 0:03:00]} 5. c3 {[%clk 0:02:52]}  d6 {[%clk 0:03:00]} 6. Nbd2 {[%clk 0:02:51]}  h6 {[%clk 0:03:00]} 7. h3 {[%clk 0:02:48]}  a5 {[%clk 0:03:01]} 8. a4 {[%clk 0:02:48]}  O-O {[%clk 0:03:00]} 9. O-O {[%clk 0:02:40]}  Re8 {[%clk 0:03:00]} 10. Re1 {[%clk 0:02:40]}  Be6 {[%clk 0:03:00]} 11. Bb5 {[%clk 0:02:40]}  Bd7 {[%clk 0:03:00]} 12. Nf1 {[%clk 0:02:38]}  Ne7 {[%clk 0:02:59]} 13. Ng3 {[%clk 0:02:35]}  Ng6 {[%clk 0:02:59]} 14. d4 {[%clk 0:02:25]}  exd4 {[%clk 0:02:58]} 15. cxd4 {[%clk 0:02:25]}  Bb4 {[%clk 0:02:59]} 16. Re2 {[%clk 0:02:22]}  Bxb5 {[%clk 0:02:58]} 17. axb5 {[%clk 0:02:21]}  Qd7 {[%clk 0:02:59]} 18. Qd3 {[%clk 0:02:19]}  c6 {[%clk 0:02:59]} 19. bxc6 {[%clk 0:02:18]}  Qxc6 {[%clk 0:03:00]} 20. e5 {[%clk 0:02:06]}  dxe5 {[%clk 0:02:58]} 21. Nxe5 {[%clk 0:02:04]}  Nxe5 {[%clk 0:02:58]} 22. dxe5 {[%clk 0:01:52]}  Rad8 {[%clk 0:02:58]} 23. Qb3 {[%clk 0:01:52]}  Nd7 {[%clk 0:02:50]} 24. Bf4 {[%clk 0:01:46]}  Nc5 {[%clk 0:02:50]} 25. Qc4 {[%clk 0:01:40]}  Nd3 {[%clk 0:02:50]} 26. Qxc6 {[%clk 0:01:37]}  bxc6 {[%clk 0:02:51]} 27. Bd2 {[%clk 0:01:25]}  Rxe5 {[%clk 0:02:42]} 28. Bxb4 {[%clk 0:01:09]}  axb4 {[%clk 0:02:43]} 29. Rd1 {[%clk 0:01:07]}  Red5 {[%clk 0:02:40]} 30. Ne4 {[%clk 0:00:41]}  f5 {[%clk 0:02:30]} 31. Ng3 {[%clk 0:00:33]}  Nf4 {[%clk 0:02:29]} 0-1

[Event "December 5 Early 2023"]
[Site "https://www.chess.com"]
[Date "2023.12.05"]
[Round "3"]
[White "Korol, Dimitry"]
[Black "Fier, Alexandr"]
[Result "0-1"]
[Board "191"]
[TimeControl "180+1"]
[WhiteFideId "14108003"]
[BlackFideId "2107139"]
[WhiteElo "2309"]
[BlackElo "2739"]
[WhiteTeam "UKR"]
[BlackTeam "BRA"]
[WhiteClock "0:00:00"]
[BlackClock "0:02:40"]

1. d4 {[%clk 0:03:00]}  Nf6 {[%clk 0:02:59]} 2. c4 {[%clk 0:03:01]}  g6 {[%clk 0:02:59]} 3. Nc3 {[%clk 0:03:01]}  Bg7 {[%clk 0:03:00]} 4. e4 {[%clk 0:03:02]}  O-O {[%clk 0:03:01]} 5. Nf3 {[%clk 0:03:03]}  d6 {[%clk 0:03:01]} 6. Be2 {[%clk 0:03:03]}  e5 {[%clk 0:03:02]} 7. dxe5 {[%clk 0:03:04]}  dxe5 {[%clk 0:03:02]} 8. Qxd8 {[%clk 0:03:05]}  Rxd8 {[%clk 0:03:02]} 9. Bg5 {[%clk 0:03:06]}  c6 {[%clk 0:03:00]} 10. Nxe5 {[%clk 0:03:05]}  Re8 {[%clk 0:03:00]} 11. O-O-O {[%clk 0:03:05]}  h6 {[%clk 0:02:59]} 12. Bh4 {[%clk 0:03:05]}  Na6 {[%clk 0:02:55]} 13. Rd6 {[%clk 0:03:02]}  g5 {[%clk 0:02:54]} 14. Bg3 {[%clk 0:03:02]}  Nc5 {[%clk 0:02:55]} 15. f3 {[%clk 0:02:35]}  Nh5 {[%clk 0:02:55]} 16. Nd3 {[%clk 0:01:39]}  Nxg3 {[%clk 0:02:46]} 17. hxg3 {[%clk 0:01:37]}  Ne6 {[%clk 0:02:47]} 18. Nf2 {[%clk 0:00:43]}  Nd4 {[%clk 0:02:43]} 19. Rd1 {[%clk 0:00:19]}  Nxe2+ {[%clk 0:02:42]} 20. Nxe2 {[%clk 0:00:19]}  Be6 {[%clk 0:02:43]} 21. b3 {[%clk 0:00:18]}  b5 {[%clk 0:02:42]} 22. Nd4 {[%clk 0:00:12]}  Bxd4 {[%clk 0:02:40]} 23. R1xd4 {[%clk 0:00:10]}  c5 {[%clk 0:02:41]} 24. Rd2 {[%clk 0:00:07]}  bxc4 {[%clk 0:02:42]} 25. bxc4 {[%clk 0:00:07]}  Rab8 {[%clk 0:02:41]} 26. Nd3 {[%clk 0:00:04]}  Bxc4 {[%clk 0:02:41]} 27. Rxh6 {[%clk 0:00:02]}  Red8 {[%clk 0:02:39]} 28. Nxc5 {[%clk 0:00:00]}  Rdc8 {[%clk 0:02:40]} 0-1

[Event "December 5 Early 2023"]
[Site "https://www.chess.com"]
[Date "2023.12.05"]
[Round "3"]
[White "Agibileg, Uurtsaikh"]
[Black "Ruge, Edison"]
[Result "1-0"]
[Board "193"]
[TimeControl "180+1"]
[WhiteFideId "4901606"]
[BlackFideId "4401000"]
[WhiteElo "2618"]
[BlackElo "2308"]
[WhiteTeam "MGL"]
[BlackTeam "COL"]
[WhiteClock "0:00:31"]
[BlackClock "0:00:00"]

1. d4 {[%clk 0:03:00]}  d5 {[%clk 0:02:58]} 2. c4 {[%clk 0:03:00]}  e5 {[%clk 0:02:59]} 3. e4 {[%clk 0:02:56]}  dxe4 {[%clk 0:02:56]} 4. d5 {[%clk 0:02:56]}  f5 {[%clk 0:02:54]} 5. g4 {[%clk 0:02:52]}  f4 {[%clk 0:02:44]} 6. Nc3 {[%clk 0:02:51]}  Bb4 {[%clk 0:02:43]} 7. Qa4+ {[%clk 0:02:43]}  Kf7 {[%clk 0:02:36]} 8. Qxb4 {[%clk 0:02:43]}  Bxg4 {[%clk 0:02:36]} 9. Nxe4 {[%clk 0:02:41]}  Nd7 {[%clk 0:02:32]} 10. Bh3 {[%clk 0:02:37]}  Bxh3 {[%clk 0:02:26]} 11. Nxh3 {[%clk 0:02:37]}  h6 {[%clk 0:02:25]} 12. f3 {[%clk 0:02:34]}  b6 {[%clk 0:02:21]} 13. Bd2 {[%clk 0:02:32]}  Qh4+ {[%clk 0:02:21]} 14. Nhf2 {[%clk 0:02:32]}  Ne7 {[%clk 0:02:21]} 15. O-O-O {[%clk 0:02:31]}  Nf5 {[%clk 0:02:19]} 16. Kb1 {[%clk 0:02:31]}  Rhe8 {[%clk 0:02:05]} 17. Rdg1 {[%clk 0:02:21]}  Nd4 {[%clk 0:01:59]} 18. Rg4 {[%clk 0:02:20]}  Qh5 {[%clk 0:01:50]} 19. Rhg1 {[%clk 0:02:20]}  Rg8 {[%clk 0:01:49]} 20. Qa3 {[%clk 0:01:56]}  Ne2 {[%clk 0:01:22]} 21. Re1 {[%clk 0:01:51]}  Nd4 {[%clk 0:01:23]} 22. c5 {[%clk 0:01:44]}  Qf5 {[%clk 0:01:19]} 23. Qd3 {[%clk 0:01:30]}  Qh5 {[%clk 0:01:09]} 24. Bc3 {[%clk 0:01:27]}  bxc5 {[%clk 0:01:03]} 25. d6 {[%clk 0:01:22]}  Rgc8 {[%clk 0:00:32]} 26. Bxd4 {[%clk 0:01:17]}  cxd4 {[%clk 0:00:31]} 27. Qc4+ {[%clk 0:01:17]}  Kf8 {[%clk 0:00:30]} 28. dxc7 {[%clk 0:01:14]}  Qf5 {[%clk 0:00:21]} 29. Reg1 {[%clk 0:01:08]}  g5 {[%clk 0:00:20]} 30. Ka1 {[%clk 0:01:05]}  Ke7 {[%clk 0:00:15]} 31. h4 {[%clk 0:01:02]}  Qe6 {[%clk 0:00:13]} 32. Qb4+ {[%clk 0:01:01]}  Kf7 {[%clk 0:00:10]} 33. Nd6+ {[%clk 0:01:01]}  Kg6 {[%clk 0:00:08]} 34. Nxc8 {[%clk 0:01:02]}  Rxc8 {[%clk 0:00:08]} 35. Rc1 {[%clk 0:00:56]}  Nf6 {[%clk 0:00:05]} 36. Rgg1 {[%clk 0:00:54]}  Qb6 {[%clk 0:00:04]} 37. Qxb6 {[%clk 0:00:45]}  axb6 {[%clk 0:00:04]} 38. hxg5 {[%clk 0:00:45]}  hxg5 {[%clk 0:00:03]} 39. Rc6 {[%clk 0:00:43]}  Kf5 {[%clk 0:00:00]} 40. Ng4 {[%clk 0:00:31]} 1-0

[Event "December 5 Early 2023"]
[Site "https://www.chess.com"]
[Date "2023.12.05"]
[Round "3"]
[White "Sharapov, Evgeny"]
[Black "Shapiro, Daniel"]
[Result "1-0"]
[Board "194"]
[TimeControl "180+1"]
[WhiteFideId "14103133"]
[BlackFideId "2001780"]
[WhiteElo "2542"]
[BlackElo "2306"]
[WhiteTeam "UKR"]
[BlackTeam "USA"]
[WhiteClock "0:01:05"]
[BlackClock "0:00:00"]

1. e4 {[%clk 0:03:00]}  c5 {[%clk 0:02:58]} 2. Nf3 {[%clk 0:02:59]}  Nc6 {[%clk 0:02:57]} 3. d4 {[%clk 0:03:00]}  cxd4 {[%clk 0:02:57]} 4. Nxd4 {[%clk 0:03:00]}  Nf6 {[%clk 0:02:57]} 5. Nc3 {[%clk 0:03:00]}  d6 {[%clk 0:02:58]} 6. Bg5 {[%clk 0:02:58]}  Qb6 {[%clk 0:02:57]} 7. Nb3 {[%clk 0:02:56]}  e6 {[%clk 0:02:57]} 8. Qd2 {[%clk 0:02:56]}  a6 {[%clk 0:02:55]} 9. O-O-O {[%clk 0:02:55]}  Be7 {[%clk 0:02:55]} 10. h4 {[%clk 0:02:55]}  O-O {[%clk 0:02:51]} 11. h5 {[%clk 0:02:55]}  h6 {[%clk 0:02:43]} 12. Be3 {[%clk 0:02:54]}  Qc7 {[%clk 0:02:40]} 13. f3 {[%clk 0:02:54]}  Rd8 {[%clk 0:02:38]} 14. Kb1 {[%clk 0:02:51]}  b5 {[%clk 0:02:36]} 15. g4 {[%clk 0:02:50]}  d5 {[%clk 0:02:34]} 16. e5 {[%clk 0:02:49]}  Nxe5 {[%clk 0:02:17]} 17. Qf2 {[%clk 0:02:48]}  Nfd7 {[%clk 0:02:05]} 18. g5 {[%clk 0:02:42]}  Bxg5 {[%clk 0:01:59]} 19. Bxg5 {[%clk 0:02:41]}  hxg5 {[%clk 0:01:58]} 20. h6 {[%clk 0:02:41]}  g6 {[%clk 0:01:46]} 21. h7+ {[%clk 0:02:41]}  Kh8 {[%clk 0:01:38]} 22. Qg3 {[%clk 0:02:41]}  f6 {[%clk 0:01:31]} 23. Nd4 {[%clk 0:02:40]}  Nf8 {[%clk 0:01:27]} 24. f4 {[%clk 0:02:36]}  gxf4 {[%clk 0:01:22]} 25. Qxf4 {[%clk 0:02:35]}  Qg7 {[%clk 0:01:15]} 26. Bh3 {[%clk 0:02:31]}  Nc4 {[%clk 0:01:05]} 27. Nf3 {[%clk 0:02:03]}  e5 {[%clk 0:01:02]} 28. Qh4 {[%clk 0:02:03]}  Bxh3 {[%clk 0:00:56]} 29. Rxh3 {[%clk 0:02:03]}  Ne3 {[%clk 0:00:52]} 30. Rg1 {[%clk 0:01:55]}  Nf5 {[%clk 0:00:47]} 31. Qg4 {[%clk 0:01:49]}  Rac8 {[%clk 0:00:43]} 32. Qxf5 {[%clk 0:01:41]}  gxf5 {[%clk 0:00:36]} 33. Rxg7 {[%clk 0:01:41]}  Ne6 {[%clk 0:00:36]} 34. Rf7 {[%clk 0:01:27]}  d4 {[%clk 0:00:28]} 35. Ne2 {[%clk 0:01:20]}  Rc7 {[%clk 0:00:15]} 36. Rxf6 {[%clk 0:01:14]}  d3 {[%clk 0:00:09]} 37. cxd3 {[%clk 0:01:09]}  Rxd3 {[%clk 0:00:00]} 38. a3 {[%clk 0:01:05]} 1-0

[Event "December 5 Early 2023"]
[Site "https://www.chess.com"]
[Date "2023.12.05"]
[Round "3"]
[White "Rose, Felix"]
[Black "Budrewicz, Krzysztof"]
[Result "1-0"]
[Board "197"]
[TimeControl "180+1"]
[WhiteFideId "5105722"]
[BlackFideId "1127950"]
[WhiteElo "2295"]
[BlackElo "2509"]
[WhiteTeam "MEX"]
[BlackTeam "POL"]
[WhiteClock "0:00:14"]
[BlackClock "0:00:13"]

1. d4 {[%clk 0:03:00]}  c5 {[%clk 0:02:59]} 2. e4 {[%clk 0:02:59]}  cxd4 {[%clk 0:02:59]} 3. Nf3 {[%clk 0:02:59]}  Nc6 {[%clk 0:02:51]} 4. Nxd4 {[%clk 0:02:59]}  Nf6 {[%clk 0:02:52]} 5. Nc3 {[%clk 0:02:59]}  e6 {[%clk 0:02:51]} 6. Ndb5 {[%clk 0:02:59]}  Bb4 {[%clk 0:02:46]} 7. a3 {[%clk 0:02:59]}  Bxc3+ {[%clk 0:02:46]} 8. Nxc3 {[%clk 0:03:00]}  d5 {[%clk 0:02:46]} 9. exd5 {[%clk 0:03:00]}  Nxd5 {[%clk 0:02:43]} 10. Nxd5 {[%clk 0:03:00]}  Qxd5 {[%clk 0:02:43]} 11. Qxd5 {[%clk 0:03:00]}  exd5 {[%clk 0:02:43]} 12. Bd3 {[%clk 0:02:52]}  O-O {[%clk 0:02:43]} 13. O-O {[%clk 0:02:51]}  Ne5 {[%clk 0:02:42]} 14. Be2 {[%clk 0:02:47]}  Bf5 {[%clk 0:02:41]} 15. c3 {[%clk 0:02:40]}  Rfe8 {[%clk 0:02:40]} 16. Bb5 {[%clk 0:02:36]}  Red8 {[%clk 0:02:39]} 17. Bf4 {[%clk 0:02:35]}  Nc4 {[%clk 0:02:32]} 18. b3 {[%clk 0:02:20]}  Na5 {[%clk 0:02:26]} 19. Ba4 {[%clk 0:01:39]}  Rac8 {[%clk 0:02:23]} 20. b4 {[%clk 0:01:28]}  Nc4 {[%clk 0:02:19]} 21. Bb3 {[%clk 0:01:12]}  Nb6 {[%clk 0:02:07]} 22. Rac1 {[%clk 0:01:09]}  Bd3 {[%clk 0:02:07]} 23. Rfd1 {[%clk 0:01:08]}  Bc4 {[%clk 0:02:07]} 24. Bc2 {[%clk 0:01:05]}  h6 {[%clk 0:02:04]} 25. a4 {[%clk 0:01:02]}  a6 {[%clk 0:02:03]} 26. a5 {[%clk 0:00:59]}  Nd7 {[%clk 0:02:03]} 27. h3 {[%clk 0:00:58]}  Nf6 {[%clk 0:01:57]} 28. Be5 {[%clk 0:00:55]}  Ne8 {[%clk 0:01:46]} 29. Re1 {[%clk 0:00:54]}  f6 {[%clk 0:01:46]} 30. Bd4 {[%clk 0:00:54]}  Kf7 {[%clk 0:01:38]} 31. Bf5 {[%clk 0:00:53]}  Rc6 {[%clk 0:01:31]} 32. Re3 {[%clk 0:00:50]}  g6 {[%clk 0:01:29]} 33. Bc2 {[%clk 0:00:46]}  Nd6 {[%clk 0:01:24]} 34. Rce1 {[%clk 0:00:44]}  Rd7 {[%clk 0:01:24]} 35. f3 {[%clk 0:00:39]}  Rc8 {[%clk 0:01:18]} 36. Re6 {[%clk 0:00:37]}  Ne8 {[%clk 0:01:11]} 37. Rxe8 {[%clk 0:00:29]}  Rxe8 {[%clk 0:01:10]} 38. Bxg6+ {[%clk 0:00:29]}  Kxg6 {[%clk 0:01:10]} 39. Rxe8 {[%clk 0:00:30]}  Rd6 {[%clk 0:01:03]} 40. Kf2 {[%clk 0:00:29]}  Rc6 {[%clk 0:01:02]} 41. g4 {[%clk 0:00:28]}  h5 {[%clk 0:01:01]} 42. Re7 {[%clk 0:00:28]}  hxg4 {[%clk 0:01:00]} 43. fxg4 {[%clk 0:00:29]}  Bd3 {[%clk 0:00:59]} 44. Rxb7 {[%clk 0:00:27]}  Re6 {[%clk 0:00:57]} 45. h4 {[%clk 0:00:26]}  Re2+ {[%clk 0:00:56]} 46. Kg3 {[%clk 0:00:26]}  Re1 {[%clk 0:00:28]} 47. h5+ {[%clk 0:00:24]}  Kh6 {[%clk 0:00:29]} 48. Kf2 {[%clk 0:00:21]}  Rf1+ {[%clk 0:00:28]} 49. Kg2 {[%clk 0:00:19]}  Kg5 {[%clk 0:00:19]} 50. Rg7+ {[%clk 0:00:11]}  Kf4 {[%clk 0:00:17]} 51. Bxf6 {[%clk 0:00:08]}  Re1 {[%clk 0:00:17]} 52. Bd4 {[%clk 0:00:08]}  Re2+ {[%clk 0:00:17]} 53. Kh3 {[%clk 0:00:08]}  Re1 {[%clk 0:00:14]} 54. Rf7+ {[%clk 0:00:09]}  Kg5 {[%clk 0:00:14]} 55. Bf6+ {[%clk 0:00:08]}  Kh6 {[%clk 0:00:12]} 56. Bg7+ {[%clk 0:00:07]}  Kg5 {[%clk 0:00:13]} 57. Bf6+ {[%clk 0:00:08]}  Kh6 {[%clk 0:00:13]} 58. Kh4 {[%clk 0:00:09]}  Rh1+ {[%clk 0:00:13]} 59. Kg3 {[%clk 0:00:09]}  Rg1+ {[%clk 0:00:13]} 60. Kh3 {[%clk 0:00:10]}  Rh1+ {[%clk 0:00:13]} 61. Kg2 {[%clk 0:00:10]}  Be4+ {[%clk 0:00:13]} 62. Kf2 {[%clk 0:00:10]}  Rh2+ {[%clk 0:00:13]} 63. Ke3 {[%clk 0:00:10]}  Rh3+ {[%clk 0:00:13]} 64. Kf4 {[%clk 0:00:11]}  Rf3+ {[%clk 0:00:14]} 65. Ke5 {[%clk 0:00:12]}  Rf1 {[%clk 0:00:14]} 66. Bg5+ {[%clk 0:00:11]}  Kxg5 {[%clk 0:00:14]} 67. Rxf1 {[%clk 0:00:12]}  Kxg4 {[%clk 0:00:14]} 68. h6 {[%clk 0:00:13]}  Kg5 {[%clk 0:00:15]} 69. Re1 {[%clk 0:00:11]}  Bd3 {[%clk 0:00:15]} 70. Kxd5 {[%clk 0:00:11]}  Kxh6 {[%clk 0:00:14]} 71. Kd4 {[%clk 0:00:12]}  Bb5 {[%clk 0:00:14]} 72. c4 {[%clk 0:00:12]}  Ba4 {[%clk 0:00:15]} 73. Re6+ {[%clk 0:00:12]}  Kg5 {[%clk 0:00:15]} 74. Rxa6 {[%clk 0:00:13]}  Kf5 {[%clk 0:00:13]} 75. Rd6 {[%clk 0:00:14]} 1-0

[Event "December 5 Early 2023"]
[Site "https://www.chess.com"]
[Date "2023.12.05"]
[Round "3"]
[White "Andreev, Konstantin"]
[Black "Fernandez Siles, Luis"]
[Result "1-0"]
[Board "199"]
[TimeControl "180+1"]
[WhiteFideId "24239305"]
[BlackFideId "2209420"]
[WhiteElo "2505"]
[BlackElo "2287"]
[WhiteTeam "ITA"]
[BlackTeam "ESP"]
[WhiteClock "0:00:28"]
[BlackClock "0:00:00"]

1. e4 {[%clk 0:03:00]}  c5 {[%clk 0:02:57]} 2. Nf3 {[%clk 0:03:01]}  Nc6 {[%clk 0:02:56]} 3. Nc3 {[%clk 0:03:00]}  g6 {[%clk 0:02:55]} 4. d4 {[%clk 0:03:00]}  cxd4 {[%clk 0:02:56]} 5. Nxd4 {[%clk 0:02:59]}  Bg7 {[%clk 0:02:57]} 6. Be3 {[%clk 0:02:58]}  Nf6 {[%clk 0:02:56]} 7. Bc4 {[%clk 0:02:57]}  O-O {[%clk 0:02:56]} 8. Bb3 {[%clk 0:02:56]}  d6 {[%clk 0:02:54]} 9. f3 {[%clk 0:02:55]}  Bd7 {[%clk 0:02:55]} 10. Qd2 {[%clk 0:02:55]}  Qa5 {[%clk 0:02:55]} 11. O-O {[%clk 0:02:52]}  Rfc8 {[%clk 0:02:38]} 12. Rad1 {[%clk 0:02:41]}  a6 {[%clk 0:02:23]} 13. a3 {[%clk 0:02:38]}  b5 {[%clk 0:02:21]} 14. Qf2 {[%clk 0:02:26]}  Rab8 {[%clk 0:01:43]} 15. h3 {[%clk 0:02:18]}  Ne5 {[%clk 0:01:42]} 16. Nd5 {[%clk 0:01:58]}  Nxd5 {[%clk 0:01:33]} 17. exd5 {[%clk 0:01:59]}  Nc4 {[%clk 0:01:28]} 18. Bxc4 {[%clk 0:01:59]}  bxc4 {[%clk 0:01:28]} 19. c3 {[%clk 0:01:58]}  Qxd5 {[%clk 0:01:21]} 20. Rd2 {[%clk 0:01:52]}  Qb7 {[%clk 0:01:06]} 21. Rfd1 {[%clk 0:01:50]}  d5 {[%clk 0:01:05]} 22. h4 {[%clk 0:01:47]}  h5 {[%clk 0:01:03]} 23. Qg3 {[%clk 0:01:43]}  Ba4 {[%clk 0:01:01]} 24. Re1 {[%clk 0:01:42]}  e5 {[%clk 0:00:57]} 25. Ne2 {[%clk 0:01:39]}  Rd8 {[%clk 0:00:52]} 26. Bg5 {[%clk 0:01:32]}  Rd7 {[%clk 0:00:45]} 27. f4 {[%clk 0:01:21]}  f6 {[%clk 0:00:37]} 28. Bxf6 {[%clk 0:01:14]}  Qb6+ {[%clk 0:00:36]} 29. Nd4 {[%clk 0:01:09]}  Qxf6 {[%clk 0:00:37]} 30. fxe5 {[%clk 0:01:09]}  Qb6 {[%clk 0:00:26]} 31. e6 {[%clk 0:01:06]}  Bxd4+ {[%clk 0:00:25]} 32. Rxd4 {[%clk 0:01:05]}  Rg7 {[%clk 0:00:26]} 33. Kh1 {[%clk 0:00:57]}  Bc6 {[%clk 0:00:24]} 34. Qe5 {[%clk 0:00:40]}  Re8 {[%clk 0:00:22]} 35. Rf4 {[%clk 0:00:39]}  Qb8 {[%clk 0:00:17]} 36. Qd4 {[%clk 0:00:37]}  Qd6 {[%clk 0:00:16]} 37. Rf6 {[%clk 0:00:36]}  Qg3 {[%clk 0:00:14]} 38. Ref1 {[%clk 0:00:35]}  Qg4 {[%clk 0:00:13]} 39. Qb6 {[%clk 0:00:32]}  Qxh4+ {[%clk 0:00:12]} 40. Kg1 {[%clk 0:00:32]}  Bb5 {[%clk 0:00:10]} 41. Rf7 {[%clk 0:00:29]}  Re7 {[%clk 0:00:08]} 42. Qd8+ {[%clk 0:00:27]}  Kh7 {[%clk 0:00:06]} 43. Rxg7+ {[%clk 0:00:27]}  Kxg7 {[%clk 0:00:06]} 44. Rf7+ {[%clk 0:00:27]}  Rxf7 {[%clk 0:00:00]} 45. Qxh4 {[%clk 0:00:28]} 1-0

[Event "December 5 Early 2023"]
[Site "https://www.chess.com"]
[Date "2023.12.05"]
[Round "3"]
[White "Barbot, Pierre"]
[Black "Tikhonov, Viacheslav"]
[Result "1-0"]
[Board "200"]
[TimeControl "180+1"]
[WhiteFideId "663727"]
[BlackFideId "44196407"]
[WhiteElo "2282"]
[BlackElo "2496"]
[WhiteTeam "FRA"]
[BlackTeam "RUS"]
[WhiteClock "0:00:08"]
[BlackClock "0:00:00"]

1. e4 {[%clk 0:02:57]}  c5 {[%clk 0:02:58]} 2. Nc3 {[%clk 0:02:47]}  g6 {[%clk 0:02:50]} 3. d4 {[%clk 0:02:28]}  cxd4 {[%clk 0:02:51]} 4. Qxd4 {[%clk 0:02:26]}  Nf6 {[%clk 0:02:52]} 5. Bg5 {[%clk 0:01:58]}  Nc6 {[%clk 0:02:51]} 6. Qd2 {[%clk 0:01:54]}  Bg7 {[%clk 0:02:49]} 7. O-O-O {[%clk 0:01:49]}  O-O {[%clk 0:02:46]} 8. Bh6 {[%clk 0:01:42]}  d6 {[%clk 0:02:43]} 9. h4 {[%clk 0:01:40]}  Qa5 {[%clk 0:02:31]} 10. Be2 {[%clk 0:01:29]}  Bg4 {[%clk 0:02:21]} 11. f3 {[%clk 0:01:27]}  Be6 {[%clk 0:02:20]} 12. a3 {[%clk 0:01:04]}  Rfc8 {[%clk 0:02:09]} 13. Bxg7 {[%clk 0:00:46]}  Kxg7 {[%clk 0:02:10]} 14. h5 {[%clk 0:00:46]}  Nxh5 {[%clk 0:02:07]} 15. g4 {[%clk 0:00:46]}  Nf6 {[%clk 0:02:07]} 16. Qh6+ {[%clk 0:00:42]}  Kg8 {[%clk 0:02:07]} 17. g5 {[%clk 0:00:41]}  Nh5 {[%clk 0:02:07]} 18. f4 {[%clk 0:00:35]}  Nb4 {[%clk 0:00:39]} 19. Bxh5 {[%clk 0:00:19]}  Rxc3 {[%clk 0:00:39]} 20. bxc3 {[%clk 0:00:10]}  Qxa3+ {[%clk 0:00:39]} 21. Kd2 {[%clk 0:00:10]}  Rc8 {[%clk 0:00:27]} 22. Ne2 {[%clk 0:00:10]}  Bc4 {[%clk 0:00:00]} 23. Bg4 {[%clk 0:00:08]} 1-0